fUST/lending_fUST_20240930
["ID","MTS","AMOUNT","RATE_DAILY","PERIOD"]
[339569595,1727698252945,-500.0,0.00014246,2]
[339569596,1727698252954,-500.0,0.00014246,2]
[339569597,1727698252965,-500.0,0.00014246,2]
[339569598,1727698252975,-500.0,0.00014246,2]
[339569599,1727698252985,-819.87,0.00014246,2]
[339569600,1727698252995,-500.0,0.00014246,2]
[339569601,1727698253005,-500.0,0.00014246,2]
[339569602,1727698253014,-728.84,0.00014246,2]
[339569603,1727698253024,-500.0,0.00014246,2]
[339569604,1727698253033,-500.0,0.00014246,2]
[339569605,1727698253043,-546.63339722,0.00014246,2]
[339569606,1727698253053,-503.45965418,0.00014246,2]
[339569607,1727698253062,-500.0,0.00014246,2]
[339569608,1727698253071,-500.0,0.00014246,2]
[339569609,1727698253081,-201.96308222,0.00014246,2]
[339569610,1727698253091,-500.0,0.00014246,2]
[339569611,1727698253100,-500.0,0.00014246,2]
[339569612,1727698253110,-500.0,0.00014246,2]
[339569613,1727698253119,-500.0,0.00014246,2]
[339569614,1727698253129,-500.0,0.00014246,2]
[339569615,1727698253138,-500.0,0.00014246,2]
[339569616,1727698253148,-500.0,0.00014246,2]
[339569617,1727698253158,-500.0,0.00014246,2]
[339569618,1727698253167,-500.0,0.00014246,2]
[339569619,1727698253177,-500.0,0.00014246,2]
[339569620,1727698253189,-500.0,0.00014246,2]
[339569621,1727698253199,-500.0,0.00014246,2]
[339569622,1727698253209,-500.0,0.00014246,2]
[339569623,1727698253217,-500.0,0.00014246,2]
[339569624,1727698253227,-500.0,0.00014246,2]
[339569625,1727698253236,-500.0,0.00014246,2]
[339569626,1727698253245,-279.43679834,0.00014246,2]
[339569627,1727698253255,-500.0,0.00014246,2]
[339569628,1727698253264,-649.78,0.00014246,2]
[339569629,1727698253274,-1281.8,0.00014246,2]
[339569630,1727698253283,-500.0,0.00014246,2]
[339569631,1727698253293,-500.0,0.00014246,2]
[339569632,1727698253302,-500.0,0.00014246,2]
[339569633,1727698253311,-500.0,0.00014246,2]
[339569634,1727698253320,-500.0,0.00014246,2]
[339569635,1727698253329,-500.0,0.00014246,2]
[339569636,1727698253338,-1922.13,0.00014246,2]
[339569637,1727698253347,-611.33,0.00014246,2]
[339569638,1727698253356,-500.0,0.00014246,2]
[339569639,1727698253364,-500.0,0.00014246,2]
[339569640,1727698253374,-500.0,0.00014246,2]
[339569641,1727698253383,-500.0,0.00014246,2]
[339569642,1727698253392,-545.14,0.00014246,2]
[339569643,1727698253401,-500.0,0.00014246,2]
[339569644,1727698253410,-946.1,0.00014246,2]
[339569645,1727698253419,-1231.69,0.00014246,2]
[339569646,1727698253428,-500.0,0.00014246,2]
[339569647,1727698253437,-500.0,0.00014246,2]
[339569648,1727698253447,-500.0,0.00014246,2]
[339569649,1727698253456,-500.0,0.00014246,2]
[339569650,1727698253465,-1158.9,0.00014246,2]
[339569651,1727698253475,-500.0,0.00014246,2]
[339569652,1727698253484,-500.0,0.00014246,2]
[339569653,1727698253493,-591.78,0.00014246,2]
[339569654,1727698253502,-500.0,0.00014246,2]
[339569655,1727698253512,-500.0,0.00014246,2]
[339569656,1727698253522,-500.0,0.00014246,2]
[339569657,1727698253531,-500.0,0.00014246,2]
[339569658,1727698253540,-582.03316428,0.00014246,2]
[339569659,1727698253549,-500.0,0.00014246,2]
[339569660,1727698253559,-500.0,0.00014246,2]
[339569661,1727698253569,-655.75,0.00014246,2]
[339569662,1727698253578,-1345.17,0.00014246,2]
[339569663,1727698253587,-500.0,0.00014246,2]
[339569664,1727698253599,-1987.69,0.00014246,2]
[339569665,1727698253608,-917.33,0.00014246,2]
[339569666,1727698253617,-500.0,0.00014246,2]
[339569667,1727698253626,-500.0,0.00014246,2]
[339569668,1727698253636,-500.0,0.00014246,2]
[339569669,1727698253645,-1719.57,0.00014246,2]
[339569670,1727698253654,-516.83,0.00014246,2]
[339569671,1727698253663,-500.0,0.00014246,2]
[339569672,1727698253672,-500.0,0.00014246,2]
[339569673,1727698253681,-1168.96,0.00014246,2]
[339569674,1727698253689,-788.43,0.00014246,2]
[339569675,1727698253699,-557.2179605,0.00014246,2]
[339569676,1727698253708,-500.0,0.00014246,2]
[339569677,1727698253717,-500.0,0.00014246,2]
[339569678,1727698253726,-500.0,0.00014246,2]
[339569679,1727698253735,-500.0,0.00014246,2]
[339569680,1727698253745,-500.0,0.00014246,2]
[339569681,1727698253754,-500.0,0.00014246,2]
[339569682,1727698253763,-500.0,0.00014246,2]
[339569683,1727698253773,-500.0,0.00014246,2]
[339569684,1727698253782,-996.98,0.00014246,2]
[339569685,1727698253792,-560.92,0.00014246,2]
[339569686,1727698253801,-500.0,0.00014246,2]
[339569687,1727698253811,-500.0,0.00014246,2]
[339569688,1727698253820,-605.96,0.00014246,2]
[339569689,1727698253830,-500.0,0.00014246,2]
[339569690,1727698253839,-476.85314269,0.00014246,2]
[339569691,1727698253849,-500.0,0.00014246,2]
[339569692,1727698253858,-500.0,0.00014246,2]
[339569693,1727698253867,-500.0,0.00014246,2]
[339569694,1727698253876,-500.0,0.00014246,2]
[339569695,1727698253886,-500.0,0.00014246,2]
[339569696,1727698253895,-500.0,0.00014246,2]
[339569697,1727698253904,-500.0,0.00014246,2]
[339569698,1727698253913,-500.0,0.00014246,2]
[339569699,1727698253923,-500.0,0.00014246,2]
[339569700,1727698253932,-500.0,0.00014246,2]
[339569701,1727698253942,-500.0,0.00014246,2]
[339569702,1727698253952,-666.25,0.00014246,2]
[339569703,1727698253961,-500.0,0.00014246,2]
[339569704,1727698253971,-500.0,0.00014246,2]
[339569705,1727698253980,-500.0,0.00014246,2]
[339569706,1727698253989,-701.11,0.00014246,2]
[339569707,1727698253998,-518.31,0.00014246,2]
[339569708,1727698254007,-500.0,0.00014246,2]
[339569709,1727698254016,-647.28388244,0.00014246,2]
[339569710,1727698254025,-500.0,0.00014246,2]
[339569711,1727698254035,-820.52,0.00014246,2]
[339569712,1727698254045,-500.0,0.00014246,2]
[339569713,1727698254054,-500.0,0.00014246,2]
[339569714,1727698254064,-500.0,0.00014246,2]
[339569715,1727698254073,-500.0,0.00014246,2]
[339569716,1727698254082,-527.86,0.00014246,2]
[339569717,1727698254092,-500.0,0.00014246,2]
[339569718,1727698254101,-500.0,0.00014246,2]
[339569719,1727698254110,-500.0,0.00014246,2]
[339569720,1727698254120,-500.0,0.00014246,2]
[339569721,1727698254129,-1837.0,0.00014246,2]
[339569722,1727698254139,-667.29,0.00014246,2]
[339569723,1727698254148,-303.22941594,0.00014246,2]
[339569724,1727698254158,-500.0,0.00014246,2]
[339569725,1727698254167,-594.96,0.00014246,2]
[339569726,1727698254177,-515.32558819,0.00014246,2]
[339569727,1727698254188,-500.0,0.00014246,2]
[339569728,1727698254197,-532.48111734,0.00014246,2]
[339569729,1727698254207,-500.0,0.00014246,2]
[339569730,1727698254216,-500.0,0.00014246,2]
[339569731,1727698254226,-500.0,0.00014246,2]
[339569732,1727698254235,-656.34,0.00014246,2]
[339569733,1727698254247,-500.0,0.00014246,2]
[339569734,1727698254255,-739.64,0.00014246,2]
[339569735,1727698254265,-500.0,0.00014246,2]
[339569736,1727698254274,-500.0,0.00014246,2]
[339569737,1727698254282,-500.0,0.00014246,2]
[339569738,1727698254292,-779.94,0.00014246,2]
[339569739,1727698254302,-500.0,0.00014246,2]
[339569740,1727698254311,-500.0,0.00014246,2]
[339569741,1727698254321,-1648.37,0.00014246,2]
[339569742,1727698254330,-761.78,0.00014246,2]
[339569743,1727698254339,-500.0,0.00014246,2]
[339569744,1727698254348,-500.0,0.00014246,2]
[339569745,1727698254356,-500.0,0.00014246,2]
[339569746,1727698254366,-500.0,0.00014246,2]
[339569747,1727698254374,-500.0,0.00014246,2]
[339569748,1727698254383,-500.0,0.00014246,2]
[339569749,1727698254392,-2001.87,0.00014246,2]
[339569750,1727698254401,-500.0,0.00014246,2]
[339569751,1727698254410,-500.0,0.00014246,2]
[339569752,1727698254419,-526.12,0.00014246,2]
[339569753,1727698254428,-500.33,0.00014246,2]
[339569754,1727698254437,-500.0,0.00014246,2]
[339569755,1727698254447,-500.0,0.00014246,2]
[339569756,1727698254456,-500.0,0.00014246,2]
[339569757,1727698254465,-500.0,0.00014246,2]
[339569758,1727698254475,-500.0,0.00014246,2]
[339569759,1727698254484,-500.0,0.00014246,2]
[339569760,1727698254493,-500.0,0.00014246,2]
[339569761,1727698254502,-500.0,0.00014246,2]
[339569762,1727698254511,-500.0,0.00014246,2]
[339569763,1727698254521,-500.0,0.00014246,2]
[339569764,1727698254530,-500.0,0.00014246,2]
[339569765,1727698254540,-603.71,0.00014246,2]
[339569766,1727698254549,-500.0,0.00014246,2]
[339569767,1727698254560,-500.0,0.00014246,2]
[339569768,1727698254569,-500.0,0.00014246,2]
[339569769,1727698254579,-500.0,0.00014246,2]
[339569770,1727698254591,-535.63,0.00014246,2]
[339569771,1727698254600,-500.0,0.00014246,2]
[339569772,1727698254609,-500.0,0.00014246,2]
[339569773,1727698254619,-500.0,0.00014246,2]
[339569774,1727698254629,-500.0,0.00014246,2]
[339569775,1727698254638,-500.0,0.00014246,2]
[339569776,1727698254648,-151.0,0.00014246,2]
[339569777,1727698254657,-500.0,0.00014246,2]
[339569778,1727698254667,-421.53402367,0.00014246,2]
[339569779,1727698254676,-500.0,0.00014246,2]
[339569780,1727698254685,-1305.04,0.00014246,2]
[339569781,1727698254696,-500.0,0.00014246,2]
[339569782,1727698254706,-500.0,0.00014246,2]
[339569783,1727698254715,-500.0,0.00014246,2]
[339569784,1727698254725,-500.0,0.00014246,2]
[339569785,1727698254734,-500.0,0.00014246,2]
[339569786,1727698254743,-597.13,0.00014246,2]
[339569787,1727698254753,-899.86,0.00014246,2]
[339569788,1727698254762,-500.0,0.00014246,2]
[339569789,1727698254772,-595.22917255,0.00014246,2]
[339569790,1727698254782,-426.64,0.00014246,2]
[339569791,1727698254792,-500.0,0.00014246,2]
[339569792,1727698254802,-500.0,0.00014246,2]
[339569793,1727698254812,-500.0,0.00014246,2]
[339569794,1727698254821,-500.0,0.00014246,2]
[339569795,1727698254830,-500.0,0.00014246,2]
[339569796,1727698254840,-502.39,0.00014246,2]
[339569797,1727698254849,-500.0,0.00014246,2]
[339569798,1727698254858,-570.78,0.00014246,2]
[339569799,1727698254868,-500.0,0.00014246,2]
[339569800,1727698254878,-500.0,0.00014246,2]
[339569801,1727698254888,-500.0,0.00014246,2]
[339569802,1727698254898,-500.0,0.00014246,2]
[339569803,1727698254907,-500.0,0.00014246,2]
[339569804,1727698254917,-500.0,0.00014246,2]
[339569805,1727698254927,-961.09,0.00014246,2]
[339569806,1727698254937,-721.50057,0.00014246,2]
[339569807,1727698254947,-500.0,0.00014246,2]
[339569808,1727698254957,-500.0,0.00014246,2]
[339569809,1727698254967,-935.370529,0.00014246,2]
[339569810,1727698254977,-721.50057,0.00014246,2]
[339569811,1727698254987,-500.0,0.00014246,2]
[339569812,1727698254998,-935.370529,0.00014246,2]
[339569813,1727698255008,-1216.4,0.00014246,2]
[339569814,1727698255017,-500.0,0.00014246,2]
[339569815,1727698255027,-500.0,0.00014246,2]
[339569816,1727698255036,-500.0,0.00014246,2]
[339569817,1727698255046,-500.0,0.00014246,2]
[339569818,1727698255056,-500.0,0.00014246,2]
[339569819,1727698255066,-151.0,0.00014246,2]
[339569820,1727698255076,-511.07,0.00014246,2]
[339569821,1727698255086,-500.0,0.00014246,2]
[339569822,1727698255096,-562.38991608,0.00014246,2]
[339569823,1727698255106,-971.71,0.00014246,2]
[339569824,1727698255116,-1000.0,0.00014246,2]
[339569825,1727698255125,-517.29,0.00014246,2]
[339569826,1727698255135,-500.0,0.00014246,2]
[339569827,1727698255144,-500.0,0.00014246,2]
[339569828,1727698255155,-201.105636,0.00014246,2]
[339569829,1727698255164,-500.0,0.00014246,2]
[339569830,1727698255175,-500.0,0.00014246,2]
[339569831,1727698255186,-201.105636,0.00014246,2]
[339569832,1727698255196,-1426.89,0.00014246,2]
[339569833,1727698255206,-500.0,0.00014246,2]
[339569834,1727698255216,-551.3,0.00014246,2]
[339569835,1727698255226,-500.0,0.00014246,2]
[339569836,1727698255236,-1592.94,0.00014246,2]
[339569837,1727698255246,-516.14,0.00014246,2]
[339569838,1727698255257,-500.0,0.00014246,2]
[339569839,1727698255267,-500.0,0.00014246,2]
[339569840,1727698255278,-500.0,0.00014246,2]
[339569841,1727698255288,-500.0,0.00014246,2]
[339569842,1727698255299,-500.0,0.00014246,2]
[339569843,1727698255309,-500.0,0.00014246,2]
[339569844,1727698255320,-500.0,0.00014246,2]
[339569845,1727698255330,-406.062265,0.00014246,2]
[339569846,1727698255340,-406.062265,0.00014246,2]
[339569847,1727698255350,-576.6744168,0.00014246,2]
[339569848,1727698255359,-851.33,0.00014246,2]
[339569849,1727698255370,-500.0,0.00014246,2]
[339569850,1727698255379,-500.0,0.00014246,2]
[339569851,1727698255390,-500.0,0.00014246,2]
[339569852,1727698255400,-500.0,0.00014246,2]
[339569853,1727698255410,-500.0,0.00014246,2]
[339569854,1727698255420,-500.0,0.00014246,2]
[339569855,1727698255431,-500.0,0.00014246,2]
[339569856,1727698255440,-500.0,0.00014246,2]
[339569857,1727698255453,-500.0,0.00014246,2]
[339569858,1727698255462,-1128.7,0.00014246,2]
[339569859,1727698255472,-1052.42,0.00014246,2]
[339569860,1727698255481,-500.0,0.00014246,2]
[339569861,1727698255491,-669.6,0.00014246,2]
[339569862,1727698255501,-500.0,0.00014246,2]
[339569863,1727698255510,-500.0,0.00014246,2]
[339569864,1727698255520,-1443.65,0.00014246,2]
[339569865,1727698255531,-1096.24,0.00014246,2]
[339569866,1727698255541,-500.0,0.00014246,2]
[339569867,1727698255551,-500.0,0.00014246,2]
[339569868,1727698255561,-500.0,0.00014246,2]
[339569869,1727698255571,-19021.45,0.00014246,2]
[339569870,1727698255581,-500.0,0.00014246,2]
[339569871,1727698255590,-500.0,0.00014246,2]
[339569872,1727698255600,-724.35,0.00014246,2]
[339569873,1727698255610,-500.0,0.00014246,2]
[339569874,1727698255619,-500.0,0.00014246,2]
[339569875,1727698255630,-500.0,0.00014246,2]
[339569876,1727698255640,-587.7,0.00014246,2]
[339569877,1727698255650,-2773.7,0.00014246,2]
[339569878,1727698255660,-500.0,0.00014246,2]
[339569879,1727698255669,-500.0,0.00014246,2]
[339569880,1727698255680,-500.0,0.00014246,2]
[339569881,1727698255690,-151.0,0.00014246,2]
[339569882,1727698255702,-500.0,0.00014246,2]
[339569883,1727698255712,-617.0,0.00014246,2]
[339569884,1727698255721,-500.0,0.00014246,2]
[339569885,1727698255731,-151.0,0.00014246,2]
[339569886,1727698255741,-500.0,0.00014246,2]
[339569887,1727698255750,-569.25282934,0.00014246,2]
[339569888,1727698256659,-500.0,0.00013698,2]
[339569889,1727698256670,-500.0,0.00013698,2]
[339569890,1727698256680,-500.0,0.00013698,2]
[339569891,1727698256690,-500.0,0.00013698,2]
[339569892,1727698256700,-500.0,0.00013972,2]
[339569893,1727698256710,-500.0,0.00013972,2]
[339569894,1727698256720,-785.64717066,0.00014246,2]
[339569895,1727698256729,-500.0,0.00014246,2]
[339569896,1727698256739,-189.420715,0.00014246,2]
[339569897,1727698256748,-500.0,0.00014246,2]
[339569898,1727698256759,-189.420715,0.00014246,2]
[339569899,1727698256768,-500.0,0.00014246,2]
[339569900,1727698256779,-500.0,0.00014246,2]
[339569901,1727698256788,-539.27193798,0.00014246,2]
[339569902,1727698256798,-500.0,0.00014246,2]
[339569903,1727698256808,-500.0,0.00014246,2]
[339569904,1727698256818,-399.055725,0.00014246,2]
[339569905,1727698256828,-543.59292182,0.00014246,2]
[339569906,1727698256838,-500.0,0.00014246,2]
[339569907,1727698256848,-151.0,0.00014246,2]
[339569908,1727698256857,-399.055725,0.00014246,2]
[339569909,1727698256867,-500.0,0.00014246,2]
[339569910,1727698256876,-500.0,0.00014246,2]
[339569911,1727698256886,-2194.36,0.00014246,2]
[339569912,1727698256896,-500.0,0.00014246,2]
[339569913,1727698256905,-646.87,0.00014246,2]
[339569914,1727698256914,-151.0,0.00014246,2]
[339569915,1727698256924,-303.8232,0.00014246,2]
[339569916,1727698256933,-500.0,0.00014246,2]
[339569917,1727698256942,-151.0,0.00014246,2]
[339569918,1727698256953,-284.42411138,0.00014246,2]
[339569919,1727698256962,-500.0,0.00014246,2]
[339569920,1727698256972,-272.23618851,0.00014246,2]
[339569921,1727698256981,-500.0,0.00014246,2]
[339569922,1727698256991,-823.92,0.00014246,2]
[339569923,1727698257000,-500.0,0.00014246,2]
[339569924,1727698257009,-500.0,0.00014246,2]
[339569925,1727698257018,-500.0,0.00014246,2]
[339569926,1727698257027,-500.0,0.00014246,2]
[339569927,1727698257037,-405.79,0.00014246,2]
[339569928,1727698257046,-555.48,0.00014246,2]
[339569929,1727698257055,-500.0,0.00014246,2]
[339569930,1727698257065,-2150.89,0.00014246,2]
[339569931,1727698257074,-500.0,0.00014246,2]
[339569932,1727698257084,-500.0,0.00014246,2]
[339569933,1727698257093,-2507.69,0.00014246,2]
[339569934,1727698257103,-500.0,0.00014246,2]
[339569935,1727698257113,-1059.29,0.00014246,2]
[339569936,1727698257123,-1282.436344,0.00014246,2]
[339569937,1727698257132,-500.0,0.00014246,2]
[339569938,1727698257142,-1282.436344,0.00014246,2]
[339569939,1727698257151,-500.0,0.00014246,2]
[339569940,1727698257161,-500.0,0.00014246,2]
[339569941,1727698257171,-392.677128,0.00014246,2]
[339569942,1727698257181,-500.0,0.00014246,2]
[339569943,1727698257194,-500.0,0.00014246,2]
[339569944,1727698257205,-392.677128,0.00014246,2]
[339569945,1727698257214,-500.0,0.00014246,2]
[339569946,1727698257223,-500.0,0.00014246,2]
[339569947,1727698257233,-500.0,0.00014246,2]
[339569948,1727698257243,-500.0,0.00014246,2]
[339569949,1727698257253,-500.0,0.00014246,2]
[339569950,1727698257263,-151.0,0.00014246,2]
[339569951,1727698257272,-500.0,0.00014246,2]
[339569952,1727698257282,-500.0,0.00014246,2]
[339569953,1727698257291,-500.0,0.00014246,2]
[339569954,1727698257301,-660.17,0.00014246,2]
[339569955,1727698257311,-500.0,0.00014246,2]
[339569956,1727698257320,-1854.405955,0.00014246,2]
[339569957,1727698257329,-500.0,0.00014246,2]
[339569958,1727698257339,-500.0,0.00014246,2]
[339569959,1727698257348,-500.0,0.00014246,2]
[339569960,1727698257357,-1854.405955,0.00014246,2]
[339569961,1727698257366,-151.0,0.00014246,2]
[339569962,1727698257376,-500.0,0.00014246,2]
[339569963,1727698257386,-500.0,0.00014246,2]
[339569964,1727698257396,-596.98,0.00014246,2]
[339569965,1727698257405,-500.0,0.00014246,2]
[339569966,1727698257414,-540.53183156,0.00014246,2]
[339569967,1727698257423,-2129.02,0.00014246,2]
[339569968,1727698257432,-217.99650067,0.00014246,2]
[339570018,1727699432048,-237.5,0.00012705,2]
[339570019,1727699432059,-237.5,0.0001274,2]
[339570020,1727699432068,-237.5,0.00012775,2]
[339570021,1727699432078,-237.5,0.0001281,2]
[339570022,1727699432088,-237.5,0.00012844,2]
[339570023,1727699432097,-237.5,0.00012879,2]
[339570024,1727699432107,-237.5,0.00012914,2]
[339570026,1727699432116,-237.5,0.00012949,2]
[339570028,1727699432127,-237.5,0.00012984,2]
[339570030,1727699432137,-237.5,0.00013019,2]
[339570032,1727699432147,-237.5,0.00013053,2]
[339570062,1727699432426,-237.5,0.00013088,2]
[339570064,1727699432437,-237.5,0.00013123,2]
[339570066,1727699432447,-237.5,0.00013158,2]
[339570068,1727699432456,-237.5,0.00013193,2]
[339570070,1727699432473,-237.5,0.00013228,2]
[339570072,1727699432483,-237.5,0.00013263,2]
[339570074,1727699432492,-237.5,0.00013297,2]
[339570076,1727699432502,-237.5,0.00013332,2]
[339570079,1727699432512,-237.5,0.00013367,2]
[339570080,1727699432521,-813.15418499,0.00013588,2]
[339570082,1727699432531,-300.0,0.00013599,2]
[339570085,1727699432545,-300.0,0.00013599,2]
[339570087,1727699432555,-5462.95016532,0.000136,2]
[339570089,1727699432565,-822.52742091,0.00013678,2]
[339570091,1727699432578,-22257.2379014,0.00013678,2]
[339570093,1727699432587,-7294.22015838,0.00013688,2]
[339570273,1727699438290,-3855.23469483,0.00013688,2]
[339570283,1727699440074,-48203.17955049,0.00013688,2]
[339570284,1727699440084,-500.0,0.00013698,2]
[339570285,1727699440093,-500.0,0.00013698,2]
[339570286,1727699440102,-500.0,0.00013698,2]
[339570287,1727699440113,-500.0,0.00013698,2]
[339570288,1727699440122,-486.54599338,0.00013698,2]
[339570289,1727699440131,-500.0,0.00013698,2]
[339570290,1727699440141,-500.0,0.00013698,2]
[339570291,1727699440150,-500.0,0.00013698,2]
[339570292,1727699440159,-500.0,0.00013698,2]
[339570293,1727699440168,-500.0,0.00013698,2]
[339570294,1727699440177,-500.0,0.00013698,2]
[339570295,1727699440187,-600.26,0.00013698,2]
[339570296,1727699440197,-500.0,0.00013698,2]
[339570297,1727699440206,-500.0,0.00013698,2]
[339570298,1727699440215,-500.0,0.00013698,2]
[339570299,1727699440224,-500.0,0.00013698,2]
[339570300,1727699440234,-500.0,0.00013698,2]
[339570301,1727699440243,-500.0,0.00013698,2]
[339570302,1727699440252,-500.0,0.00013698,2]
[339570303,1727699440261,-502.22,0.00013698,2]
[339570304,1727699440271,-500.0,0.00013698,2]
[339570305,1727699440280,-500.0,0.00013698,2]
[339570306,1727699440289,-500.0,0.00013698,2]
[339570307,1727699440298,-500.0,0.00013698,2]
[339570308,1727699440307,-500.0,0.00013698,2]
[339570309,1727699440316,-500.0,0.00013698,2]
[339570310,1727699440325,-500.0,0.00013698,2]
[339570311,1727699440335,-1241.08,0.00013698,2]
[339570312,1727699440344,-500.0,0.00013698,2]
[339570313,1727699440354,-500.0,0.00013698,2]
[339570314,1727699440363,-517.81,0.00013698,2]
[339570315,1727699440372,-689.88,0.00013698,2]
[339570316,1727699440382,-500.0,0.00013698,2]
[339570317,1727699440391,-605.01,0.00013698,2]
[339570318,1727699440400,-500.0,0.00013698,2]
[339570319,1727699440410,-500.0,0.00013698,2]
[339570320,1727699440419,-500.0,0.00013698,2]
[339570321,1727699440428,-500.0,0.00013698,2]
[339570322,1727699440438,-238.27607734,0.00013698,2]
[339570323,1727699440447,-500.0,0.00013698,2]
[339570324,1727699440457,-500.0,0.00013698,2]
[339570325,1727699440466,-500.0,0.00013698,2]
[339570326,1727699440475,-500.0,0.00013698,2]
[339570327,1727699440485,-500.0,0.00013698,2]
[339570328,1727699440494,-500.0,0.00013698,2]
[339570329,1727699440503,-802.67,0.00013698,2]
[339570330,1727699440512,-500.0,0.00013698,2]
[339570331,1727699440522,-500.0,0.00013698,2]
[339570332,1727699440531,-500.0,0.00013698,2]
[339570333,1727699440540,-500.0,0.00013698,2]
[339570334,1727699440550,-500.0,0.00013698,2]
[339570335,1727699440559,-500.0,0.00013698,2]
[339570336,1727699440568,-476.85314269,0.00013698,2]
[339570337,1727699440578,-500.0,0.00013698,2]
[339570338,1727699440590,-500.0,0.00013698,2]
[339570339,1727699440599,-500.0,0.00013698,2]
[339570340,1727699440608,-500.0,0.00013698,2]
[339570341,1727699440618,-1739.23,0.00013698,2]
[339570342,1727699440628,-872.35,0.00013698,2]
[339570343,1727699440637,-500.0,0.00013698,2]
[339570344,1727699440648,-500.0,0.00013698,2]
[339570345,1727699440659,-500.0,0.00013698,2]
[339570346,1727699440668,-500.0,0.00013698,2]
[339570347,1727699440677,-500.0,0.00013698,2]
[339570348,1727699440686,-500.0,0.00013698,2]
[339570349,1727699440695,-500.0,0.00013698,2]
[339570350,1727699440704,-500.0,0.00013698,2]
[339570351,1727699440714,-606.80835407,0.00013698,2]
[339570352,1727699440723,-500.0,0.00013698,2]
[339570353,1727699440732,-500.0,0.00013698,2]
[339570354,1727699440742,-500.0,0.00013698,2]
[339570355,1727699440751,-500.0,0.00013698,2]
[339570356,1727699440760,-500.0,0.00013698,2]
[339570357,1727699440769,-642.68,0.00013698,2]
[339570358,1727699440779,-647.28388244,0.00013698,2]
[339570359,1727699440788,-500.0,0.00013698,2]
[339570360,1727699440797,-500.0,0.00013698,2]
[339570361,1727699440806,-500.0,0.00013698,2]
[339570362,1727699440815,-499.99999999,0.00013698,2]
[339570363,1727699440826,-610.73,0.00013698,2]
[339570364,1727699440835,-500.0,0.00013698,2]
[339570365,1727699440844,-500.0,0.00013698,2]
[339570366,1727699440854,-393.39404862,0.00013698,2]
[339570367,1727699440863,-520.59,0.00013698,2]
[339570368,1727699440872,-500.0,0.00013698,2]
[339570369,1727699440881,-500.0,0.00013698,2]
[339570370,1727699440891,-500.0,0.00013698,2]
[339570371,1727699440900,-500.0,0.00013698,2]
[339570372,1727699440909,-500.0,0.00013698,2]
[339570373,1727699440918,-500.0,0.00013698,2]
[339570374,1727699440928,-647.18,0.00013698,2]
[339570375,1727699440938,-500.0,0.00013698,2]
[339570376,1727699440947,-500.0,0.00013698,2]
[339570377,1727699440956,-500.0,0.00013698,2]
[339570378,1727699440967,-500.0,0.00013698,2]
[339570379,1727699440977,-500.0,0.00013698,2]
[339570380,1727699440986,-500.0,0.00013698,2]